bitfinex/quotes_ETHUSD_20251009
["timestamp","ask_amount","ask_price","bid_price","bid_amount"]
[1760024187247,0.50883217,4311.3,4310.4,6.597]
[1760024187448,2.7689197,4311.5,4310.7,2.31977092]
[1760024187615,0.4495,4311.5,4310.5,2.31991383]
[1760024187824,2.76888444,4311.5,4310.8,2.3197413]
[1760024188021,0.11701222,4311.7,4310.3,0.001]
[1760024188221,0.4744,4311.4,4310.3,0.001]
[1760024188421,0.49885516,4311.3,4310.3,0.001]
[1760024188621,2.3195936,4311.1,4310.3,0.001]
[1760024188855,12.07078635,4310.9,4310.3,0.001]
[1760024189155,4.8735703,4310.4,4310.3,0.001]
[1760024189451,6.15512876,4310.4,4310.3,0.001]
[1760024189615,6.62952876,4310.4,4310.3,0.001]
[1760024190016,1.75595846,4310.4,4310.3,0.001]
[1760024190254,0.97325516,4310.4,4310.3,0.001]
[1760024190473,0.49885516,4310.4,4310.3,0.001]
[1760024190661,9.4834,4310.8,4310.3,0.001]
[1760024190833,0.49879635,4310.7,4310.3,0.001]
[1760024191030,0.83086414,4311.3,4310.3,0.001]
[1760024191031,0.49879635,4310.6,4310.3,0.001]
[1760024191342,2.31963668,4311.1,4310.3,2.55358671]
[1760024191542,0.49876975,4311.0,4310.3,0.001]
[1760024191744,0.49876975,4310.9,4310.3,0.001]
[1760024191949,0.6336,4310.4,4310.3,0.001]
[1760024192266,3.45234005,4310.4,4310.3,0.001]
[1760024192637,2.95367795,4310.2,4310.1,0.005]
[1760024192836,10.0504477,4310.2,4310.1,0.005]
[1760024193156,10.5248477,4310.2,4310.1,0.005]
[1760024193567,12.4448477,4310.2,4310.1,0.005]
[1760024193769,12.5592361,4310.2,4310.1,1e-08]
[1760024193976,14.13024315,4310.2,4310.1,1e-08]
[1760024194831,14.12944315,4310.2,4310.1,1e-08]
[1760024195456,7.53144315,4310.2,4310.1,1e-08]
[1760024195636,16.54144315,4310.2,4310.1,1e-08]
[1760024196232,6.89784315,4310.2,4310.1,1e-08]
[1760024196467,15.90784315,4310.2,4310.1,1e-08]
[1760024196673,16.54144315,4310.2,4310.1,1e-08]
[1760024196869,28.6122295,4310.2,4310.1,1e-08]
[1760024197670,29.44239156,4310.2,4310.1,1e-08]
[1760024198232,28.6122295,4310.2,4310.1,1e-08]
[1760024198649,28.6122295,4310.2,4310.1,0.00100001]
[1760024198850,29.44239156,4310.2,4310.1,0.00100001]
[1760024199259,28.6122295,4310.2,4310.1,0.00100001]
[1760024200376,28.6122295,4310.2,4307.1,0.005]
[1760024200377,0.6336,4308.3,4307.1,0.005]
[1760024200574,12.190655,4308.2,4307.1,0.005]
[1760024200742,0.6983,4308.2,4307.1,0.005]
[1760024201062,7.2973,4308.2,4307.1,2.3267425]
[1760024201370,7.2973,4308.2,4307.1,0.005]
[1760024201673,8.54378698,4308.2,4307.1,0.005]
[1760024201882,0.6983,4308.2,4307.8,2.32132309]
[1760024202057,0.6983,4308.2,4307.8,2.32136945]
[1760024202247,0.2239,4308.6,4308.1,2.32619835]
[1760024202442,0.4744,4308.5,4308.2,2.32110431]
[1760024202689,0.4744,4308.4,4308.1,0.005]
[1760024202977,0.86842891,4308.4,4308.1,0.005]
[1760024203161,0.86842891,4308.4,4307.1,0.005]
[1760024203162,0.6336,4308.1,4307.1,0.005]
[1760024203367,6.6,4308.0,4307.1,2.32674643]
[1760024203540,0.6983,4307.9,4307.3,2.32164]
[1760024203745,6.6,4307.8,4307.2,2.3216939]
[1760024203983,6.6,4307.8,4307.5,2.3214919]
[1760024204276,2.413,4308.3,4307.6,0.02321478]
[1760024204277,6.6,4308.3,4307.6,0.02321478]
[1760024204443,6.6,4308.3,4307.3,2.32164]
[1760024204753,0.2273,4309.0,4307.4,0.28146849]
[1760024204955,0.41,4309.2,4307.5,0.4393]
[1760024205264,0.4353,4309.1,4308.7,2.32087432]
[1760024205580,0.4353,4309.0,4308.8,2.32081735]
[1760024205765,0.41,4309.2,4308.3,2.32105181]
[1760024205957,0.41,4309.2,4308.8,2.32078374]
[1760024206169,0.4353,4309.1,4308.9,2.32077379]
[1760024206342,0.4353,4309.0,4308.3,2.32110113]
[1760024206688,0.4353,4309.0,4307.1,2.335]
[1760024206689,0.4353,4308.9,4307.1,2.335]
[1760024206843,0.4353,4308.9,4308.3,2.32108149]
[1760024207043,0.116,4308.4,4307.7,0.116]
[1760024207274,0.4353,4308.9,4307.7,0.116]
[1760024207275,0.116,4308.7,4308.4,2.32100403]
[1760024207508,0.4353,4308.6,4308.0,0.116]
[1760024207640,0.4353,4308.6,4307.9,2.32130838]
[1760024207844,0.116,4308.3,4307.9,2.32130838]
[1760024208044,0.116,4308.3,4307.6,0.116]
[1760024208045,0.4353,4308.2,4307.6,0.116]
[1760024208276,0.4353,4308.2,4307.3,0.25676694]
[1760024208277,0.116,4308.0,4307.3,0.116]
[1760024208476,0.6626,4307.9,4307.4,2.32157651]
[1760024208675,0.4353,4307.8,4307.4,2.3215861]
[1760024208853,0.4353,4307.7,4307.5,2.32152854]
[1760024209083,0.2273,4307.9,4307.1,0.005]
[1760024209084,0.4353,4307.6,4307.1,0.005]
[1760024209256,7.0363,4307.6,4307.1,0.005]
[1760024209460,7.82602,4307.6,4307.1,2.32673595]
[1760024209668,0.4353,4307.5,4307.1,0.005]
[1760024209978,0.6336,4307.4,4307.1,0.005]
[1760024210145,2.32164,4307.3,4307.1,0.005]
[1760024210351,0.4353,4307.3,4307.1,0.005]
[1760024210577,0.6336,4307.5,4307.1,0.005]
[1760024210578,0.4353,4307.2,4307.1,0.005]
[1760024211292,0.6336,4307.1,4306.0,0.253]
[1760024211507,0.6336,4307.1,4301.8,0.11533276]
[1760024211508,0.6336,4304.8,4301.8,0.11533276]
[1760024211783,0.6336,4304.8,4300.0,13.745125]
[1760024211784,1.92,4302.4,4301.0,1.15980272]
[1760024211946,1.92,4304.0,4301.0,1.15980272]
[1760024211947,1.65623927,4301.6,4301.0,1.15980272]
[1760024212147,1.46163434,4301.1,4301.0,1.15980272]
[1760024212477,1.24214332,4302.2,4301.0,1.61630272]
[1760024212785,1.24214332,4302.0,4301.9,2.32455426]
[1760024212955,1.24214332,4303.4,4301.8,1.92]
[1760024213146,0.2273,4304.1,4301.8,1.92]
[1760024213147,1.24214332,4303.6,4303.5,2.32369001]
[1760024213342,2.50626036,4304.7,4303.5,0.4565]
[1760024213343,1.24214332,4304.7,4303.5,0.4565]
[1760024213549,1.24214332,4305.0,4303.7,4.24358203]
[1760024213774,1.24214332,4304.9,4303.8,2.32352804]
[1760024213970,1.24214332,4304.9,4302.3,0.2053]
[1760024213971,0.005,4302.9,4302.3,0.2053]
[1760024214179,0.005,4302.9,4302.7,2.32407862]
[1760024214580,0.005,4303.9,4303.7,2.32355953]
[1760024215167,2.8479,4304.9,4304.2,2.32331211]
[1760024215168,1.24214332,4304.4,4304.2,2.32331211]
[1760024215370,0.005,4304.9,4303.9,2.32347405]
[1760024215371,1.24214332,4304.8,4304.3,0.4565]
[1760024215569,0.005,4304.9,4304.8,2.32298829]
[1760024215755,1e-08,4304.9,4304.8,4.70759674]
[1760024216091,1.24214332,4306.2,4305.3,2.3227069]
[1760024216387,1.24214332,4306.2,4304.8,2.84110845]
[1760024216388,1e-08,4306.9,4306.8,2.32190953]
[1760024216764,1e-08,4306.9,4305.4,0.4565]
[1760024216765,1e-08,4306.9,4306.7,2.32195535]
[1760024217273,1e-08,4306.9,4306.7,2.78635121]
[1760024217797,0.4332,4306.8,4304.9,0.1193]
[1760024217955,1.23621335,4306.0,4305.8,2.32243505]
[1760024218156,2.16723927,4306.4,4305.0,2.32288037]
[1760024218378,2.16723927,4306.4,4305.7,2.32250272]
[1760024218379,1.23702104,4305.8,4305.7,2.32250272]
[1760024218595,1.23702104,4306.0,4305.9,2.32239485]
[1760024218761,1.23702104,4306.0,4304.9,1.92]
[1760024218968,1.23702104,4306.0,4305.8,0.116]
[1760024219269,1.23726046,4305.9,4305.8,0.116]
[1760024219579,1.65623927,4306.4,4305.8,2.4384355]
[1760024219775,0.116,4306.5,4305.8,2.4384355]
[1760024219776,1.23727308,4305.9,4305.8,2.4384355]
[1760024220175,1.77223927,4306.5,4305.8,0.116]
[1760024220176,1.65623927,4306.4,4305.8,0.116]
[1760024220375,0.116,4306.1,4304.0,0.4304]
[1760024220578,0.116,4306.1,4304.1,0.005]
[1760024220579,1.2376252,4305.1,4304.1,0.005]
[1760024220793,2.07716036,4306.4,4304.1,0.005]
[1760024220794,1.2376252,4304.8,4304.2,2.414]
[1760024221100,1.2376252,4304.9,4304.1,0.005]
[1760024221261,1.23811956,4305.0,4304.2,2.32331211]
[1760024221457,1.23811956,4305.2,4304.3,1.94323258]
[1760024221689,1.23811956,4305.2,4304.1,0.42984609]
[1760024221690,1.65623927,4305.5,4304.1,0.005]
[1760024221877,1.23814339,4304.9,4304.4,2.32315192]
[1760024222084,0.12381434,4304.9,4304.4,2.32319742]
[1760024222291,1.23814339,4305.2,4304.3,2.32325482]
[1760024222491,1.23814339,4305.0,4304.1,0.005]
[1760024222692,1.23814339,4304.9,4304.1,0.005]
[1760024222897,0.12381434,4304.8,4304.1,0.005]
[1760024223194,1.23814339,4304.6,4304.1,0.005]
[1760024223356,1.113,4305.6,4304.1,0.005]
[1760024223357,1.23814339,4304.9,4304.1,0.005]
[1760024223564,1.23814339,4304.9,4304.8,2.32298829]
[1760024223758,1.23814339,4305.0,4304.9,2.32293433]
[1760024223990,1.23814339,4305.1,4304.9,2.32293433]
[1760024224194,1.23814339,4305.1,4304.1,0.005]
[1760024224507,2.976,4305.4,4304.1,0.005]
[1760024224508,1.85726361,4305.0,4304.1,0.005]
[1760024224802,1.23814339,4304.5,4304.1,0.005]
[1760024224986,1.73344927,4304.4,4304.3,2.32325813]
[1760024225159,0.49530588,4304.4,4304.3,2.32325813]
[1760024225593,1.73344927,4304.4,4304.3,2.32325813]
[1760024226111,0.49530588,4304.4,4304.3,2.32325813]
[1760024226596,0.49530588,4304.4,4304.3,2.34649071]
[1760024226798,1.23814339,4305.1,4305.0,2.32288037]
[1760024227013,0.4481,4306.7,4305.0,2.32288037]
[1760024227014,1.23814339,4306.4,4305.0,0.4304]
[1760024227174,1.23814339,4306.4,4305.9,2.32237526]
[1760024227364,1.68624339,4306.3,4304.5,1.92]
[1760024227567,1.23814339,4305.9,4304.8,2.32298829]
[1760024227874,1.23814339,4306.0,4304.6,0.28155614]
[1760024228311,1.23814339,4306.0,4304.7,2.32304225]
[1760024228471,1.23814339,4306.0,4304.6,0.28155614]
[1760024228472,1.23814339,4306.2,4305.9,2.32239485]
[1760024228679,1.23814339,4306.2,4305.0,2.32288037]
[1760024228877,1.23814339,4306.5,4306.2,2.32223305]
[1760024229177,1.23814339,4306.5,4304.6,0.28155614]
[1760024229178,2.32253179,4305.7,4304.5,2.32314922]
[1760024229401,1.23891654,4305.1,4304.1,0.005]
[1760024229603,1.23891654,4305.0,4304.1,0.005]
[1760024229907,1.23891654,4305.1,4304.1,0.005]
[1760024230123,1.23891654,4305.1,4304.2,2.32331211]
[1760024230325,1.23891654,4305.0,4304.1,0.005]
[1760024230506,0.116,4304.8,4304.1,0.121]
[1760024230830,1.23891654,4305.1,4304.3,2.32325813]
[1760024231129,1.65188872,4305.6,4305.4,2.32266456]
[1760024231130,1.23891654,4305.5,4305.4,2.32266456]
[1760024231684,0.55269165,4305.5,4304.1,0.005]
[1760024231813,0.55269165,4305.5,4304.2,2.32325857]
[1760024231814,0.61976584,4304.5,4304.2,2.32325857]
[1760024232015,2.32266456,4305.4,4304.1,0.005]
[1760024232016,0.61976584,4304.4,4304.3,2.32325813]
[1760024232205,0.61976584,4304.4,4304.1,0.005]
[1760024232413,0.61976584,4304.4,4304.2,2.32331211]
[1760024232588,0.56976584,4304.3,4304.2,2.32331211]
[1760024232790,1.23953168,4305.0,4304.8,2.32298261]
[1760024232993,1.23953168,4305.2,4304.9,2.32293433]
[1760024233193,1.23953168,4305.2,4304.2,0.1161]
[1760024233194,1.23953168,4305.4,4305.2,2.32276691]
[1760024233393,1.23953168,4305.4,4304.2,0.1161]
[1760024233626,1.23953168,4305.5,4304.3,0.74]
[1760024233829,1.23953168,4305.5,4304.2,5.47828541]
[1760024234028,1.23953168,4305.6,4305.4,2.3226433]
[1760024234219,1.23953168,4305.6,4305.5,2.32261061]
[1760024234415,0.2047,4305.9,4304.4,2.32320416]
[1760024234733,1.23998667,4305.8,4304.6,0.4304]
[1760024234894,1.23998667,4305.8,4305.7,2.32250272]
[1760024235225,1.23998667,4305.8,4304.6,0.33449727]
[1760024235226,1.68798667,4305.8,4304.6,0.33449727]
[1760024235839,1.23998667,4305.7,4305.1,2.32278866]
[1760024236042,1.23998667,4305.6,4304.7,2.32304225]
[1760024236206,1.23998667,4305.7,4304.7,2.32304225]
[1760024236542,0.448,4305.8,4304.5,2.804]
[1760024236543,1.42974534,4305.6,4305.5,2.32261061]
[1760024236742,0.4457,4305.6,4305.4,2.32265424]
[1760024236940,0.4457,4305.6,4305.5,2.32261061]
[1760024237142,1.44958667,4305.9,4304.5,7.017]
[1760024237441,1.23998667,4305.8,4305.4,2.32266456]
[1760024237645,0.4433,4305.7,4305.1,2.32278719]
[1760024237841,0.4433,4305.7,4305.2,2.32274369]
[1760024238143,0.4433,4305.7,4305.4,2.32261551]
[1760024238446,1.23998667,4305.8,4305.7,2.32250272]
[1760024238746,2.07716037,4306.9,4306.1,2.32228698]
[1760024238747,1.23998667,4306.2,4306.1,2.32228698]
[1760024238947,1.23998667,4306.5,4306.4,2.3221252]
[1760024239177,0.49724326,4306.5,4306.4,2.3221252]
[1760024239854,1e-08,4306.9,4306.4,2.34534645]
[1760024240015,1e-08,4306.9,4306.8,2.32190953]
[1760024240212,1e-08,4306.9,4306.8,11.86134222]
[1760024240426,1e-08,4306.9,4306.8,12.29174222]
[1760024240769,0.005,4307.9,4306.9,4.24185562]
[1760024241063,0.0042,4307.9,4307.8,2.32137053]
[1760024241222,0.0042,4307.9,4307.8,11.37758423]
[1760024241413,0.0042,4307.9,4307.8,4.13017378]
[1760024241621,0.0042,4307.9,4307.8,11.47137053]
[1760024241863,1e-08,4307.9,4307.8,13.83027053]
[1760024242327,1e-08,4308.9,4308.3,2.3210575]
[1760024242524,1e-08,4308.9,4308.8,2.54513178]
[1760024242739,1e-08,4308.9,4308.8,2.32083178]
[1760024242955,1e-08,4308.9,4308.0,2.76014982]
[1760024243162,1e-08,4308.9,4308.0,0.4389]
[1760024243334,1e-08,4308.9,4308.3,2.32104851]
[1760024243539,1e-08,4308.9,4308.0,2.542]
[1760024243745,1e-08,4308.9,4308.8,2.32083178]
[1760024244259,1e-08,4308.9,4308.6,2.32090436]
[1760024244462,1e-08,4308.9,4308.0,0.4957]
[1760024244463,1e-08,4308.9,4308.8,2.32083178]
[1760024245460,1e-08,4308.9,4308.7,2.3208803]
[1760024245668,1e-08,4308.9,4308.3,6.617]
[1760024245854,1e-08,4308.9,4308.8,2.32083178]
[1760024246229,1e-08,4308.9,4308.4,2.32104725]
[1760024246735,1e-08,4308.9,4308.8,2.32083178]
[1760024246938,1e-08,4308.9,4308.0,0.4957]
[1760024247135,1e-08,4308.9,4308.1,9.029]
[1760024247540,1e-08,4308.9,4308.8,2.32083178]
[1760024248742,1e-08,4308.9,4308.8,2.77693178]
[1760024249491,1e-08,4308.9,4308.8,14.35393178]
[1760024249633,0.005,4310.9,4308.8,14.35393178]
[1760024249634,0.005,4310.9,4310.1,2.32013178]
[1760024249833,0.005,4310.9,4310.1,11.37033309]
[1760024250057,0.005,4310.9,4310.1,13.17228592]
[1760024251087,0.005,4310.9,4309.6,2.32034894]
[1760024251088,0.005,4310.9,4309.2,0.4561]
[1760024251294,0.005,4310.9,4309.3,4.539]
[1760024251502,0.005,4310.9,4309.2,0.4561]
[1760024251671,0.005,4310.9,4309.9,2.32021264]
[1760024251858,0.005,4310.9,4309.6,2.438]
[1760024252064,0.005,4310.9,4310.1,2.32013178]
[1760024252295,0.1152,4310.6,4310.1,2.32013178]
[1760024253273,0.005,4310.9,4310.1,5.66718599]
[1760024253471,0.005,4310.9,4310.1,5.78318599]
[1760024254801,0.005,4310.9,4310.1,12.39418599]
[1760024255185,0.005,4310.9,4310.1,11.91623178]
[1760024255588,0.005,4310.9,4310.1,11.46113178]
[1760024256534,0.005,4310.9,4310.1,11.80123178]
[1760024258221,0.005,4310.9,4310.1,2.77623178]
[1760024258402,0.005,4310.9,4310.1,11.79923178]
[1760024258605,0.005,4310.9,4310.1,13.21117581]
[1760024258991,0.005,4310.9,4310.1,4.18817581]
[1760024259311,0.005,4310.9,4310.1,11.79723178]
[1760024259515,0.005,4310.9,4310.1,2.77623178]
[1760024259831,0.005,4310.9,4310.1,11.79723178]
[1760024260138,0.005,4310.9,4309.4,11.97249045]
[1760024260139,0.005,4310.9,4309.4,0.4561]
[1760024260301,0.005,4310.9,4309.5,9.021]
[1760024260491,0.005,4310.9,4310.1,2.32013178]
[1760024260692,0.005,4310.9,4310.1,7.74413178]
[1760024262430,0.005,4310.9,4309.5,1.13971]
[1760024262633,0.4435,4310.9,4310.1,2.32013178]
[1760024262828,0.4435,4310.9,4310.1,3.58413178]
[1760024263846,0.0012,4310.2,4310.1,3.58413178]
[1760024265020,0.0012,4310.2,4310.1,4.04103178]
[1760024265464,0.0012,4310.2,4310.1,11.79303178]
[1760024266654,0.0012,4310.2,4310.1,11.90903178]
[1760024267409,0.49773467,4310.2,4310.1,11.90903178]
[1760024268044,0.49773467,4310.2,4310.1,2.43613178]
[1760024268245,0.49773467,4310.2,4310.1,6.344]
[1760024268445,1.32616876,4310.2,4310.1,6.344]
[1760024268645,1.32616876,4310.2,4309.9,0.116]
[1760024268646,0.49773467,4310.2,4309.9,0.116]
[1760024268960,0.49773467,4310.2,4310.0,8.9231811]
[1760024268961,1.32575208,4310.1,4310.0,8.9231811]
[1760024269120,0.49653467,4310.1,4310.0,8.9231811]
[1760024269344,1.32575208,4310.1,4310.0,8.9231811]
[1760024269548,0.49653467,4310.1,4310.0,8.9231811]
[1760024269843,0.49653467,4310.1,4310.0,2.3201811]
[1760024270172,0.49653467,4310.1,4310.0,4.007]
[1760024270173,2.30771655,4310.1,4310.0,4.007]
[1760024270475,1.06772988,4310.1,4309.9,6.602]
[1760024270670,0.93503467,4310.0,4309.9,8.92223944]
[1760024270846,0.49653467,4310.0,4309.9,6.602]
[1760024271052,0.49653467,4310.0,4309.9,8.92223944]
[1760024271366,0.49653467,4310.0,4309.8,6.601]
[1760024271571,0.49653467,4309.9,4309.8,6.601]
[1760024271769,0.49653467,4309.9,4309.8,8.92129328]
[1760024271956,0.49653467,4309.9,4309.8,6.601]
[1760024272271,0.93503467,4309.9,4309.6,0.116]
[1760024272475,0.13269521,4310.1,4309.5,2.3204547]
[1760024272476,1.24688748,4309.7,4309.5,2.3204547]
[1760024272643,2.17974111,4309.6,4309.5,2.3204547]
[1760024273252,0.49653467,4309.6,4309.3,3.83]
[1760024273573,0.83145171,4309.4,4309.3,3.83]
[1760024273788,1.32798638,4309.4,4309.3,3.83]
[1760024273996,1.32798638,4309.4,4309.3,6.1505625]
[1760024274280,0.49653467,4309.4,4309.3,3.83]
[1760024274591,2.47008522,4309.4,4309.1,5.781]
[1760024274744,0.49653467,4309.3,4309.1,5.781]
[1760024274947,0.49653467,4309.2,4309.1,8.1016702]
[1760024275151,1.32814558,4309.2,4309.1,8.1016702]
[1760024275358,0.49653467,4309.2,4309.1,8.1016702]
[1760024275561,0.49653467,4309.2,4309.1,8.2176702]
[1760024275776,0.49653467,4309.2,4309.1,9.72850706]
[1760024277198,0.49653467,4309.2,4309.1,2.4366702]
[1760024277363,0.49653467,4309.2,4309.1,11.4496702]
[1760024277687,0.49653467,4309.2,4309.1,11.8944702]
[1760024278690,1.32814558,4309.2,4309.1,2.4366702]
[1760024278853,0.49653467,4309.2,4309.1,11.4496702]
[1760024279186,0.49653467,4309.2,4309.1,2.4366702]
[1760024279487,1.32868511,4309.2,4309.1,9.0366702]
[1760024280573,1.32868511,4309.2,4309.1,2.4366702]
[1760024280772,1.32868511,4309.2,4309.1,9.0376702]
[1760024280967,1.32868511,4309.2,4309.1,0.116]
[1760024281169,0.75409382,4309.2,4309.1,4.7806702]
[1760024281384,1.32856004,4309.2,4309.1,4.7806702]
[1760024281682,1.32856004,4309.2,4309.1,2.3206702]
[1760024281881,0.49653467,4309.2,4309.1,2.3206702]
[1760024282081,0.49653467,4309.2,4309.1,8.8716702]
[1760024282697,0.49653467,4309.2,4309.1,8.9876702]
[1760024282993,0.002,4310.7,4309.1,8.41804437]
[1760024283211,0.0012,4310.2,4310.1,2.43613178]
[1760024283361,0.0012,4310.2,4309.2,2.3648]
[1760024283362,0.0012,4310.2,4309.4,2.413]
[1760024283558,0.0012,4310.2,4310.1,2.32013178]
[1760024283758,0.0012,4310.2,4310.1,6.03713178]
[1760024283962,0.0012,4310.2,4310.1,9.23766565]
[1760024284614,0.0012,4310.2,4310.1,5.52066565]
[1760024284829,0.0012,4310.2,4310.1,14.53466565]
[1760024285182,1e-08,4310.9,4310.4,2.31996891]
[1760024285409,1e-08,4310.9,4310.5,6.62419916]
[1760024285617,1e-08,4310.9,4310.6,2.83761543]
[1760024285829,1e-08,4310.9,4310.8,2.31975503]
[1760024286000,1e-08,4310.9,4310.8,2.34295258]
[1760024286189,1e-08,4310.9,4310.8,2.78775258]
[1760024286589,1e-08,4310.9,4310.8,2.76455503]
[1760024286819,1e-08,4310.9,4310.8,12.5664331]
[1760024287020,0.00120001,4311.1,4311.0,2.31964741]
[1760024287516,0.00120001,4311.1,4311.0,9.36444741]
[1760024288042,0.00120001,4311.1,4311.0,8.91964741]
[1760024288425,0.00120001,4311.1,4311.0,2.31964741]
[1760024288589,0.00120001,4311.1,4310.1,0.83573387]
[1760024288791,0.00120001,4311.1,4310.2,4.502]
[1760024289335,0.4505,4311.0,4310.2,4.502]
[1760024289688,0.4505,4311.0,4310.6,2.31980961]
[1760024289918,0.4505,4311.0,4310.6,2.31981004]
[1760024290229,0.00120001,4311.1,4310.9,2.31969242]
[1760024290437,0.00120001,4311.1,4310.1,6.599]
[1760024290438,0.00120001,4311.1,4311.0,2.31964741]
[1760024290788,0.00120001,4311.1,4311.0,2.78764388]
[1760024291485,0.00120001,4311.1,4311.0,8.91864741]
[1760024291904,0.00120001,4311.1,4310.2,0.6599]
[1760024292101,0.00120001,4311.1,4310.2,0.692]
[1760024292347,0.45880001,4311.1,4310.6,2.31985718]
[1760024292541,0.4576,4311.0,4310.2,0.692]
[1760024292746,0.00120001,4311.1,4309.1,0.4498]
[1760024292928,2.31982073,4310.7,4309.1,0.005]
[1760024293129,2.31982073,4310.7,4309.2,5.15761635]
[1760024293130,0.4576,4310.6,4309.2,5.15761635]
[1760024293330,0.4576,4310.6,4310.1,2.32012902]
[1760024293504,0.1152,4310.4,4310.1,2.32112902]
[1760024293707,0.5728,4310.4,4310.1,2.32112902]
[1760024294123,0.5728,4310.4,4310.1,2.32112871]
[1760024294324,0.1152,4310.4,4310.1,0.001]
[1760024294638,0.4576,4310.3,4310.1,0.001]
[1760024294808,0.4576,4310.3,4310.1,2.32109143]
[1760024295010,0.4576,4310.3,4310.2,2.32007795]
[1760024295207,0.4576,4310.3,4310.1,0.001]
[1760024295713,0.1152,4310.4,4310.1,0.001]
[1760024295714,0.4576,4310.2,4310.1,0.001]
[1760024295915,3.90960872,4310.2,4310.1,0.001]
[1760024296131,5.82960872,4310.2,4310.1,0.001]
[1760024296301,2.95394712,4309.7,4309.6,0.001]
[1760024296507,2.95421635,4309.2,4309.0,0.001]
[1760024296702,2.95421635,4309.2,4308.1,0.005]
[1760024296703,2.95443178,4308.8,4308.1,0.005]
[1760024296937,0.6336,4308.5,4308.1,0.005]
[1760024297139,9.50940862,4308.4,4308.1,0.005]
[1760024297331,9.4581,4308.4,4308.1,0.005]
[1760024297505,0.4471,4308.3,4308.1,0.005]
[1760024297937,2.768255,4308.2,4308.1,0.005]
[1760024298241,0.4471,4308.2,4308.1,0.005]
[1760024298446,2.768255,4308.2,4308.1,0.005]
[1760024298915,0.4471,4308.2,4308.1,0.005]
[1760024299730,7.0471,4308.2,4308.1,0.005]
[1760024300239,0.4471,4308.2,4308.1,0.005]
[1760024301113,6.6,4308.3,4308.1,0.005]
[1760024301723,6.601,4308.6,4308.1,0.005]
[1760024301929,0.4471,4308.4,4308.1,0.005]
[1760024302318,2.321155,4308.2,4308.1,0.005]
[1760024302541,2.321155,4308.2,4308.1,0.0005]
[1760024302542,4.874755,4308.2,4308.1,0.0005]
[1760024302743,2.95491665,4307.9,4307.8,0.001]
[1760024302958,2.95491665,4307.9,4307.1,0.005]
[1760024302959,2.3216939,4307.2,4307.1,0.005]
[1760024303158,6.601,4307.2,4307.1,0.005]
[1760024303457,7.0422,4307.2,4307.1,0.005]
[1760024303663,0.4412,4307.6,4307.1,0.005]
[1760024303816,0.116,4307.2,4307.1,2.32674781]
[1760024304515,0.4412,4308.0,4307.2,2.3216939]
[1760024304708,0.4391,4308.6,4308.2,2.32114185]
[1760024304944,2.32067619,4309.1,4308.5,2.32099338]
[1760024304945,2.413,4308.9,4308.5,2.32099338]
[1760024305144,0.116,4308.5,4308.4,2.32104725]
[1760024305466,0.116,4309.4,4308.5,0.116]
[1760024306144,0.116,4309.4,4307.4,0.46204694]
[1760024306145,0.116,4308.7,4307.4,0.4448]
[1760024306327,0.116,4308.7,4307.8,2.32131879]
[1760024306328,7.0364,4308.6,4307.8,2.32131879]
[1760024306510,7.0364,4308.6,4307.3,2.32164]
[1760024306711,7.0364,4308.6,4306.9,2.561]
[1760024306712,0.4344,4308.6,4307.4,0.02321586]
[1760024306948,0.4344,4308.6,4306.9,2.561]
[1760024306949,7.0364,4308.6,4308.0,2.3212197]
[1760024307150,0.6336,4309.0,4307.3,0.0232164]
[1760024307456,0.6336,4309.0,4306.9,2.561]
[1760024307457,0.4344,4309.8,4307.4,0.4448]
[1760024307651,0.4344,4309.8,4307.7,2.32142442]
[1760024307853,0.4344,4309.8,4309.1,2.32064466]
[1760024308078,0.4344,4309.8,4309.2,2.32061364]
[1760024308380,0.4344,4309.8,4309.1,2.32066004]
[1760024308546,0.4344,4309.8,4308.1,0.2089]
[1760024308750,0.4344,4309.8,4309.4,2.32049755]
[1760024309178,0.4344,4309.8,4308.4,2.32100699]
[1760024309447,0.4344,4309.8,4308.2,2.753855]
[1760024309448,0.4344,4309.8,4308.7,2.32084506]
[1760024309787,2.32050096,4309.5,4308.4,2.32104455]
[1760024309961,0.4294,4309.4,4308.0,2.413]
[1760024310155,0.4294,4309.4,4308.7,2.32083241]
[1760024310351,0.4294,4309.4,4308.2,0.02321155]
[1760024310596,0.4294,4309.4,4308.9,2.3207358]
[1760024311079,2.3204559,4309.5,4308.8,2.32083015]
[1760024311308,0.6336,4309.7,4308.0,2.413]
[1760024311625,2.32040356,4309.6,4308.7,2.32086944]
[1760024311776,6.602,4309.8,4308.0,5.028]
[1760024311973,0.6336,4309.6,4306.3,0.47261296]
[1760024312180,2.3205625,4309.3,4308.5,2.32094185]
[1760024312479,2.3205625,4309.3,4308.6,2.3209198]
[1760024312699,2.32057395,4309.3,4307.9,0.02321316]
[1760024312887,2.32061635,4309.2,4307.9,0.02321316]
[1760024313099,0.4302,4309.2,4307.8,0.0232137]
[1760024313408,0.4302,4309.2,4308.8,2.32078606]
[1760024313833,0.002,4309.4,4308.9,5.1896812]
[1760024313981,0.002,4309.4,4309.3,2.3205625]
[1760024314186,0.002,4309.4,4309.3,3.23568875]
[1760024314516,0.002,4309.4,4309.3,12.68338875]
[1760024314806,0.002,4309.4,4309.3,12.25068875]
[1760024315009,0.002,4309.4,4309.3,3.66838875]
[1760024315222,0.002,4309.4,4309.3,8.9225625]
[1760024315597,0.002,4309.4,4309.3,11.7682625]
[1760024316300,0.002,4309.4,4309.3,11.8842625]
[1760024318016,0.002,4309.4,4309.3,2.8692625]
[1760024318223,0.002,4309.4,4309.3,11.4505625]
[1760024318582,0.002,4309.4,4309.3,3.40424725]
[1760024318830,0.002,4309.4,4309.3,0.116]
[1760024319001,0.002,4309.4,4308.8,2.413]
[1760024319201,0.002,4309.4,4309.0,0.116]
[1760024319426,0.002,4309.4,4309.2,2.32061635]
[1760024319628,0.002,4309.4,4309.3,2.3205625]
[1760024321236,0.002,4309.4,4308.7,2.413]